[Event "Romanian-ch Open 2022"]
[Site "Eforie Nord"]
[Date "2022.02.20"]
[Round "1.26"]
[White "Patrascu, Catalin-Lucian"]
[Black "Butolo, Alexandru-Mircea"]
[Result "1-0"]
[ECO "B30"]
[WhiteElo "2310"]
[BlackElo "1850"]
[Annotator "NA"]
[PlyCount "73"]
[EventDate "2022.02.20"]
[EventType "swiss"]
[EventCountry "ROU"]
[SourceTitle "playchess.com"]
[Source "ChessBase"]
[SourceQuality "1"]
[TimeControl "40/5400+30:900+30"]

1. e4 {[%emt 0:00:16]} c5 {[%emt 0:00:04]} 2. Nf3 {[%emt 0:00:04]} Nc6 {[%emt 0:00:04]} 3. Bb5 {[%emt 0:00:20]} e5 {[%emt 0:00:42]} 4. O-O {[%emt 0:01:02]} Bd6 {[%emt 0:02:37]} 5. c3 {[%emt 0:02:10]} a6 {[%emt 0:02:04]} 6. Ba4 {[%emt 0:04:06]} b5 {[%emt 0:05:56]} 7. Bc2 {[%emt 0:03:53]} Nge7 {[%emt 0:04:56]} 8. a4 {[%emt 0:08:30]} Bb7 {[%emt 0:15:50]} 9. Na3 {[%emt 0:12:38]} O-O {[%emt 0:16:53]} 10. Qe2 {[%emt 0:10:03]} (10. d3 $5 {[%cal Rc1e3]}) 10... Ng6 {[%emt 0:10:59]} 11. d3 {[%emt 0:04:36]} Be7 {[%emt 0:09:25]} 12. Be3 {[%emt 0:04:39]} b4 {[%emt 0:08:58]} 13. Nc4 {[%emt 0:00:10]} Qc7 {[%emt 0:03:40]} 14. a5 {[%emt 0:02:29]} Kh8 {[%emt 0:01:29] [#]} (14... Rad8 $1 $11) 15. Nb6 {[%emt 0:07:16]} (15. g3 $142 $1) 15... Rae8 {[%emt 0:00:32]} 16. Nd5 {[%emt 0:05:32]} Qd8 {[%emt 0:00:08]} 17. Rfe1 {[%emt 0:03:53]} d6 {[%emt 0:03:45]} 18. Ba4 {[%emt 0:05:47]} f5 {[%emt 0:02:45]} 19. cxb4 {[%emt 0:02:50]} f4 {[%emt 0:00:18]} 20. Bd2 {[%emt 0:05:33]} Nh4 {[%emt 0:00:53]} 21. Bxc6 {[%emt 0:06:22]} Nxf3+ {[%emt 0:00:36]} 22. Qxf3 {[%emt 0:00:05]} Bxc6 {[%emt 0:00:04]} 23. Rec1 {[%emt 0:02:04]} Bxd5 {[%emt 0:00:45]} 24. exd5 {[%emt 0:00:04]} Qd7 {[%emt 0:02:25]} 25. Rc4 {[%emt 0:01:04]} Rb8 {[%emt 0:01:32]} 26. Rac1 {[%emt 0:00:55]} Rb5 {[%emt 0:00:17]} 27. h3 {[%emt 0:02:04]} h6 {[%emt 0:00:45]} 28. bxc5 {[%emt 0:01:12]} dxc5 {[%emt 0:01:46]} 29. Bc3 {[%emt 0:00:13]} Bd6 {[%emt 0:01:13]} 30. Re1 {[%emt 0:01:23]} Qc7 {[%emt 0:02:10]} 31. Rce4 {[%emt 0:02:15]} (31. d4 $142 exd4 {[#]} 32. Bxd4 $1 {[%mdl 512]}) 31... Rf5 {[%emt 0:01:35]} 32. Qg4 {[%emt 0:01:16]} Rg5 {[%emt 0:00:47]} 33. Qe6 $18 {[%emt 0:00:17]} f3 {[%emt 0:00:06]} 34. g4 {[%emt 0:01:02]} h5 {[%emt 0:00:54]} 35. Bxe5 {[%emt 0:01:07]} Bxe5 {[%emt 0:00:27]} 36. Rxe5 {[%emt 0:00:06]} Rxe5 {[%emt 0:00:14]} 37. Rxe5 {[%emt 0:00:10]} 1-0

[Event "Romanian-ch Open 2022"]
[Site "Eforie Nord"]
[Date "2022.02.20"]
[Round "1.27"]
[White "Pirvulescu, Adrian"]
[Black "Nastore, Pavel-Alexandru"]
[Result "0-1"]
[ECO "B90"]
[WhiteElo "1843"]
[BlackElo "2306"]
[Annotator "ChessBase"]
[PlyCount "66"]
[EventDate "2022.02.20"]
[EventType "swiss"]
[EventCountry "ROU"]
[SourceTitle "playchess.com"]
[Source "ChessBase"]
[SourceQuality "1"]
[TimeControl "40/5400+30:900+30"]

1. e4 {[%emt 0:00:04]} c5 {[%emt 0:01:05]} 2. Nf3 {[%emt 0:00:07]} d6 {[%emt 0:00:30]} 3. d4 {[%emt 0:00:08]} cxd4 {[%emt 0:00:25]} 4. Nxd4 {[%emt 0:00:05]} Nf6 {[%emt 0:00:05]} 5. Nc3 {[%emt 0:00:05]} a6 {[%emt 0:00:34]} 6. Be3 {[%emt 0:00:17]} e5 {[%emt 0:00:38]} 7. Nb3 {[%emt 0:00:05]} Be6 {[%emt 0:00:50]} 8. h3 {[%emt 0:00:16]} h5 {[%emt 0:10:11]} 9. Qf3 {[%emt 0:00:17]} Nbd7 {[%emt 0:09:00]} 10. a4 {[%emt 0:00:22]} Rc8 {[%emt 0:03:21]} 11. a5 {[%emt 0:00:15]} Be7 {[%emt 0:12:25]} 12. Bd3 {[%emt 0:00:18]} Qc7 {[%emt 0:06:51]} 13. O-O {[%emt 0:03:04]} O-O {[%emt 0:02:12]} 14. Rfd1 {[%emt 0:03:40]} Qc6 {[%emt 0:12:06]} 15. Nd2 {[%emt 0:03:26]} Rfe8 {[%emt 0:12:13]} 16. Qe2 {[%emt 0:21:32]} g6 {[%emt 0:03:33]} 17. Ra4 {[%emt 0:08:51]} d5 {[%emt 0:08:44]} 18. exd5 {[%emt 0:00:51]} Nxd5 {[%emt 0:00:43]} 19. Rc4 {[%emt 0:02:31]} Nf4 {[%emt 0:02:39]} 20. Rxf4 {[%emt 0:14:43]} exf4 {[%emt 0:00:34]} 21. Bxf4 {[%emt 0:00:24]} Nc5 {[%emt 0:00:49]} 22. Bc4 {[%emt 0:06:29]} Bf6 {[%emt 0:02:06]} 23. Bxe6 {[%emt 0:06:06]} Nxe6 {[%emt 0:02:04]} 24. Qe4 {[%emt 0:06:08]} Bxc3 {[%emt 0:01:25]} 25. bxc3 {[%emt 0:00:35]} Qxe4 {[%emt 0:00:07]} 26. Nxe4 {[%emt 0:00:16]} Nxf4 {[%emt 0:00:05]} 27. Nf6+ {[%emt 0:00:19]} Kf8 {[%emt 0:00:06]} 28. Nxe8 {[%emt 0:00:31]} Kxe8 {[%emt 0:00:35]} 29. Rb1 {[%emt 0:00:55]} Rc7 {[%emt 0:01:09]} 30. c4 {[%emt 0:00:41]} Ne2+ {[%emt 0:00:21]} 31. Kf1 {[%emt 0:00:42]} Nd4 {[%emt 0:00:05]} 32. c3 {[%emt 0:03:57]} Nc6 {[%emt 0:00:12]} 33. Ra1 {[%emt 0:00:04]} Re7 {[%emt 0:00:33]} 0-1

[Event "Romanian-ch Open 2022"]
[Site "Eforie Nord"]
[Date "2022.02.20"]
[Round "1.28"]
[White "Dobre, Claudiu-Cristian"]
[Black "Tamas, Christian-Arrydan"]
[Result "1-0"]
[ECO "E99"]
[WhiteElo "2298"]
[BlackElo "1833"]
[Annotator "NA"]
[PlyCount "109"]
[EventDate "2022.02.20"]
[EventType "swiss"]
[EventCountry "ROU"]
[SourceTitle "playchess.com"]
[Source "ChessBase"]
[SourceQuality "1"]
[TimeControl "40/5400+30:900+30"]

1. c4 {[%emt 0:00:04]} Nf6 {[%emt 0:00:12]} 2. Nf3 {[%emt 0:00:07]} g6 {[%emt 0:00:07]} 3. Nc3 {[%emt 0:02:01]} Bg7 {[%emt 0:00:23]} 4. d4 {[%emt 0:00:45]} O-O {[%emt 0:00:13]} 5. e4 {[%emt 0:00:21]} d6 {[%emt 0:00:07]} 6. Be2 {[%emt 0:00:11]} e5 {[%emt 0:00:55]} 7. O-O {[%emt 0:00:11]} Nc6 {[%emt 0:00:03]} 8. d5 {[%emt 0:00:16]} Ne7 {[%emt 0:00:07]} 9. Ne1 {[%emt 0:01:55]} Nd7 {[%emt 0:02:17]} 10. f3 {[%emt 0:00:10]} f5 {[%emt 0:02:16]} 11. g4 {[%emt 0:00:07]} a5 {[%emt 0:29:48]} 12. Be3 {[%emt 0:02:42]} Nf6 {[%emt 0:04:36]} (12... f4 $5 {[%cal Rf4e3]} 13. Bf2 b6 $11) 13. Nd3 {[%emt 0:02:22]} b6 {[%emt 0:01:24]} 14. a3 {[%emt 0:06:44]} f4 {[%emt 0:07:41]} 15. Bf2 {[%emt 0:00:34]} g5 $1 {[%emt 0:00:07]} 16. Kg2 {[%emt 0:04:28]} h5 {[%emt 0:00:42]} 17. h3 {[%emt 0:00:49]} Ng6 {[%emt 0:04:34]} 18. Qc2 {[%emt 0:02:49]} Bd7 {[%emt 0:05:11]} 19. b3 {[%emt 0:06:30]} Qc8 {[%emt 0:00:56]} 20. Qd1 {[%emt 0:00:55]} Nh4+ {[%emt 0:10:25]} 21. Bxh4 {[%emt 0:00:37]} gxh4 {[%emt 0:00:06]} 22. Nf2 {[%emt 0:00:43]} Qe8 {[%emt 0:04:05]} 23. Rg1 $1 {[%emt 0:14:53]} Nh7 {[%emt 0:07:02]} 24. Qc2 {[%emt 0:01:42]} Ng5 {[%emt 0:01:44]} 25. Rh1 {[%emt 0:00:43]} Qg6 {[%emt 0:00:36]} 26. Nb1 {[%emt 0:02:05]} (26. Rag1 $11) 26... Rf7 {[%emt 0:03:45]} 27. Nd2 {[%emt 0:01:12]} hxg4 {[%emt 0:03:50]} 28. hxg4 {[%emt 0:02:10]} Qh6 {[%emt 0:02:50]} 29. Nh3 {[%emt 0:04:39]} (29. Rh2 $5 {[%cal Ra1h1]}) 29... Nh7 {[%emt 0:01:29]} 30. Qc3 {[%emt 0:04:02]} Bf6 {[%emt 0:02:04]} 31. b4 {[%emt 0:00:32]} Rg7 {[%emt 0:01:09]} 32. Rhg1 {[%emt 0:03:00]} Bd8 {[%emt 0:02:52]} 33. Kh2 {[%emt 0:02:57]} Qg6 {[%emt 0:01:24]} 34. Nb3 {[%emt 0:01:50]} Nf6 {[%emt 0:01:55]} 35. Nd2 {[%emt 0:06:10]} (35. c5 $1 $14) 35... Qf7 {[%emt 0:00:32]} 36. c5 {[%emt 0:02:18]} Rg6 {[%emt 0:00:20] [#]} 37. Nc4 $1 {[%emt 0:02:04]} Qg7 {[%emt 0:00:22]} 38. cxd6 {[%emt 0:01:10]} ({Better is} 38. c6 $16 axb4 39. Qd3 (39. Qxb4 Bc8 $14) (39. axb4 Rxa1 40. Qxa1 Be8 $16)) 38... cxd6 {[%emt 0:00:05]} 39. bxa5 {[%emt 0:03:37]} bxa5 {[%emt 0:00:46]} 40. Rab1 $1 {[%emt 0:00:00]} Bxg4 $2 {[%emt 0:00:00]} 41. Nf2 {[%emt 0:04:11]} ({Less strong is} 41. Rxg4 Nxg4+ 42. fxg4 Qa7 $16) 41... Bh5 {[%emt 0:02:42]} 42. Rxg6 {[%emt 0:01:24]} Bxg6 {[%emt 0:00:07]} 43. Nxd6 {[%emt 0:00:39]} Bc7 {[%emt 0:06:59]} 44. Rb7 {[%emt 0:06:50]} Bxd6 $18 {[%emt 0:03:13]} 45. Rxg7+ {[%emt 0:00:08]} Kxg7 {[%emt 0:00:03]} 46. Nd3 {[%emt 0:01:08]} Bxe4 {[%emt 0:01:28]} 47. Qc6 {[%emt 0:05:28]} Bxf3 {[%emt 0:02:43]} 48. Bxf3 {[%emt 0:01:45]} Rd8 {[%emt 0:00:05]} 49. Nf2 {[%emt 0:01:22]} Bxa3 {[%emt 0:00:40]} 50. Qc7+ {[%emt 0:00:43]} Rd7 {[%emt 0:00:07]} 51. Qxe5 {[%emt 0:00:10]} Bd6 {[%emt 0:01:01]} 52. Qg5+ {[%emt 0:00:31]} Kf7 {[%emt 0:00:05]} 53. Qf5 {[%emt 0:01:49]} Be7 {[%emt 0:01:56]} 54. Ne4 {[%emt 0:01:03]} Rxd5 {[%emt 0:00:29]} 55. Ng5+ {[%emt 0:00:38]} 1-0

[Event "Romanian-ch Open 2022"]
[Site "Eforie Nord"]
[Date "2022.02.20"]
[Round "1.29"]
[White "Visanescu, Dragos-Nicholas"]
[Black "Martian, Dragos-Daniel"]
[Result "0-1"]
[ECO "B40"]
[WhiteElo "1781"]
[BlackElo "2270"]
[Annotator "ChessBase"]
[PlyCount "68"]
[EventDate "2022.02.20"]
[EventType "swiss"]
[EventCountry "ROU"]
[SourceTitle "playchess.com"]
[Source "ChessBase"]
[SourceQuality "1"]
[TimeControl "40/5400+30:900+30"]

1. e4 {[%emt 0:00:02]} c5 {[%emt 0:00:07]} 2. Nf3 {[%emt 0:00:04]} e6 {[%emt 0:02:46]} 3. c3 {[%emt 0:00:19]} d5 {[%emt 0:00:22]} 4. e5 {[%emt 0:00:08]} d4 {[%emt 0:00:48]} 5. Bd3 {[%emt 0:00:26]} Nc6 {[%emt 0:01:18]} 6. O-O {[%emt 0:01:08]} Nge7 {[%emt 0:03:12]} 7. Na3 {[%emt 0:01:05]} Nd5 {[%emt 0:01:47]} 8. Nc2 {[%emt 0:08:10]} Nf4 {[%emt 0:06:51]} 9. Bb5 {[%emt 0:06:31]} d3 {[%emt 0:05:10]} 10. Bxc6+ {[%emt 0:02:03]} bxc6 {[%emt 0:00:01]} 11. Ne3 {[%emt 0:00:33]} Qa5 {[%emt 0:07:28]} 12. c4 {[%emt 0:04:19]} Be7 {[%emt 0:02:28]} 13. g3 {[%emt 0:03:15]} Ne2+ {[%emt 0:01:02]} 14. Kg2 {[%emt 0:01:12]} O-O {[%emt 0:04:00]} 15. Qb3 {[%emt 0:04:51]} Rd8 {[%emt 0:01:43]} 16. Ne1 {[%emt 0:10:34]} Qb4 {[%emt 0:02:52]} 17. Qd1 {[%emt 0:03:15]} Qb8 {[%emt 0:04:10]} 18. Nxd3 {[%emt 0:05:07]} Nxc1 {[%emt 0:01:49]} 19. Nxc1 {[%emt 0:05:09]} Qxb2 {[%emt 0:00:50]} 20. Nb3 {[%emt 0:02:17]} Qxe5 {[%emt 0:00:23]} 21. Qc2 {[%emt 0:00:50]} Qd6 {[%emt 0:06:33]} 22. Qe4 {[%emt 0:07:10]} Bf6 {[%emt 0:03:54]} 23. Rab1 {[%emt 0:02:53]} a5 {[%emt 0:01:15]} 24. a4 {[%emt 0:01:41]} g6 {[%emt 0:01:23]} 25. Rfd1 {[%emt 0:01:15]} e5 {[%emt 0:01:21]} 26. Kh1 {[%emt 0:05:21]} Bg7 {[%emt 0:00:59]} 27. g4 {[%emt 0:01:16]} Be6 {[%emt 0:01:02]} 28. Qf3 {[%emt 0:07:20]} Rdb8 {[%emt 0:01:28]} 29. Qe4 {[%emt 0:04:24]} Rb4 {[%emt 0:00:46]} 30. Qc2 {[%emt 0:00:31]} Bxc4 {[%emt 0:01:46]} 31. Kg1 {[%emt 0:08:41]} Bd3 {[%emt 0:00:49]} 32. Qa2 {[%emt 0:02:19]} Bxb1 {[%emt 0:00:16]} 33. Rxb1 {[%emt 0:00:05]} Rab8 {[%emt 0:00:49]} 34. Nd1 {[%emt 0:01:04]} Qe6 {[%emt 0:00:27]} 0-1

[Event "Romanian-ch Open 2022"]
[Site "Eforie Nord"]
[Date "2022.02.20"]
[Round "1.30"]
[White "Filip, Andrei"]
[Black "Chis, Bogdan-Vasile"]
[Result "1-0"]
[ECO "B03"]
[WhiteElo "2216"]
[BlackElo "1685"]
[Annotator "NA"]
[PlyCount "111"]
[EventDate "2022.02.20"]
[EventType "swiss"]
[EventCountry "ROU"]
[SourceTitle "playchess.com"]
[Source "ChessBase"]
[SourceQuality "1"]
[TimeControl "40/5400+30:900+30"]

1. e4 {[%emt 0:00:03]} Nf6 {[%emt 0:00:03]} 2. e5 {[%emt 0:00:10]} Nd5 {[%emt 0:00:03]} 3. d4 {[%emt 0:00:05]} d6 {[%emt 0:00:05]} 4. c4 {[%emt 0:00:05]} Nb6 {[%emt 0:00:05]} 5. f4 {[%emt 0:00:06]} dxe5 {[%emt 0:00:09]} 6. fxe5 {[%emt 0:00:08]} c5 {[%emt 0:00:11]} 7. d5 {[%emt 0:00:56]} e6 {[%emt 0:00:05]} 8. Nc3 {[%emt 0:02:04]} exd5 {[%emt 0:00:08]} 9. cxd5 {[%emt 0:00:30]} c4 {[%emt 0:00:07]} 10. Nf3 {[%emt 0:05:02]} Bb4 {[%emt 0:00:10]} 11. Bxc4 {[%emt 0:05:02]} Bxc3+ {[%emt 0:00:12]} 12. bxc3 {[%emt 0:00:04]} Nxc4 {[%emt 0:00:06]} 13. Qa4+ {[%emt 0:00:03]} Nd7 {[%emt 0:00:58]} 14. Qxc4 {[%emt 0:00:06]} Nb6 {[%emt 0:00:07]} 15. Qb5+ {[%emt 0:01:08]} Qd7 {[%emt 0:00:13]} 16. Qxd7+ {[%emt 0:09:45]} Bxd7 {[%emt 0:00:06]} 17. d6 {[%emt 0:00:18]} Rc8 {[%emt 0:00:18]} 18. Bd2 {[%emt 0:14:06]} O-O {[%emt 0:18:18]} 19. O-O {[%emt 0:01:25]} Nd5 {[%emt 0:09:17]} 20. Rfc1 {[%emt 0:01:40]} Rc4 {[%emt 0:02:00]} 21. Rab1 {[%emt 0:09:51]} b6 {[%emt 0:01:38]} 22. Rb3 {[%emt 0:16:34]} Re8 {[%emt 0:15:11]} 23. Rd1 {[%emt 0:10:11]} f6 {[%emt 0:32:51]} 24. Be1 {[%emt 0:04:17]} Nf4 {[%emt 0:02:55]} 25. exf6 {[%emt 0:06:44]} gxf6 {[%emt 0:00:37]} 26. Rb4 {[%emt 0:00:48]} Rxb4 {[%emt 0:03:41]} 27. cxb4 {[%emt 0:00:54]} Re2 {[%emt 0:00:28]} 28. Rd2 {[%emt 0:00:48]} (28. Bg3 $5 {[%cal Rg3f4]} Ne6 29. Nd4 Nxd4 30. Rxd4 $14) 28... Rxd2 {[%emt 0:00:30]} 29. Bxd2 {[%emt 0:00:06]} Nd3 {[%emt 0:00:38]} 30. Nd4 {[%emt 0:02:39]} Kf7 {[%emt 0:00:29]} 31. b5 {[%emt 0:01:39]} Nc5 {[%emt 0:01:55]} 32. Bb4 {[%emt 0:02:35]} Nd3 {[%emt 0:08:06]} 33. Ba3 {[%emt 0:01:20]} Ne5 {[%emt 0:00:23]} 34. Kf2 {[%emt 0:01:15]} Ke8 {[%emt 0:02:16]} 35. Kg3 {[%emt 0:00:41]} Bc8 {[%emt 0:01:05]} 36. Kh4 {[%emt 0:04:11]} Bb7 {[%emt 0:00:08]} 37. g3 {[%emt 0:00:37]} Nf3+ {[%emt 0:00:58]} 38. Nxf3 {[%emt 0:00:34]} Bxf3 {[%emt 0:00:02]} 39. Bb4 {[%emt 0:00:44]} h5 {[%emt 0:00:23]} 40. a4 {[%emt 0:00:00]} Kd7 {[%emt 0:00:00]} 41. h3 $11 {[%emt 0:02:43]} Bd1 {[%emt 0:11:00]} 42. a5 {[%emt 0:00:14]} bxa5 {[%emt 0:05:52]} 43. Bc5 {[%emt 0:01:50]} a4 {[%emt 0:00:46]} 44. Bxa7 {[%emt 0:00:29]} Kxd6 {[%emt 0:00:03]} 45. Bd4 {[%emt 0:00:10]} Ke6 {[%emt 0:00:37]} 46. Bb2 {[%emt 0:01:26]} f5 {[%emt 0:02:03]} 47. Kg5 {[%emt 0:00:11]} Kd5 {[%emt 0:00:58]} 48. Ba3 {[%emt 0:01:25]} Kc4 {[%emt 0:00:28]} 49. b6 {[%emt 0:00:14]} Bf3 {[%emt 0:00:05]} 50. Kxf5 {[%emt 0:01:49]} Kb3 {[%emt 0:00:06]} 51. Bd6 {[%emt 0:00:16]} a3 {[%emt 0:00:07]} 52. Kf4 {[%emt 0:00:43]} Bg2 {[%emt 0:01:16]} 53. Kg5 {[%emt 0:00:16]} a2 {[%emt 0:00:19]} 54. Be5 {[%emt 0:00:04]} Kc4 {[%emt 0:00:58]} 55. Kxh5 {[%emt 0:00:24]} Kd5 {[%emt 0:00:05]} 56. b7 {[%emt 0:00:06]} 1-0

[Event "Romanian-ch Open 2022"]
[Site "Eforie Nord"]
[Date "2022.02.21"]
[Round "2.10"]
[White "Stoleriu, George"]
[Black "Magold, Filip"]
[Result "1-0"]
[ECO "A30"]
[WhiteElo "2419"]
[BlackElo "2204"]
[Annotator "ChessBase"]
[PlyCount "167"]
[EventDate "2022.02.20"]
[EventType "swiss"]
[EventCountry "ROU"]
[SourceTitle "playchess.com"]
[Source "ChessBase"]
[SourceQuality "1"]
[TimeControl "40/5400+30:900+30"]

1. Nf3 {[%emt 0:01:39]} Nf6 {[%emt 0:00:18]} 2. c4 {[%emt 0:00:28]} e6 {[%emt 0:00:23]} 3. b3 {[%emt 0:00:08]} c5 {[%emt 0:02:24]} 4. Bb2 {[%emt 0:00:33]} b6 {[%emt 0:00:30]} 5. g3 {[%emt 0:00:27]} Bb7 {[%emt 0:00:12]} 6. Bg2 {[%emt 0:00:06]} Be7 {[%emt 0:00:18]} 7. O-O {[%emt 0:00:07]} O-O {[%emt 0:00:13]} 8. Nc3 {[%emt 0:01:44]} d6 {[%emt 0:00:44]} 9. e3 {[%emt 0:03:06]} Nbd7 {[%emt 0:02:08]} 10. Rc1 {[%emt 0:02:20]} a6 {[%emt 0:04:18]} 11. Qe2 {[%emt 0:03:14]} Re8 {[%emt 0:02:43]} 12. Rfd1 {[%emt 0:03:04]} Qc7 {[%emt 0:01:45]} 13. d4 {[%emt 0:07:59]} Bf8 {[%emt 0:02:10]} 14. Nd2 {[%emt 0:19:51]} Rab8 {[%emt 0:10:42]} 15. Nce4 {[%emt 0:12:40]} Nxe4 {[%emt 0:07:43]} 16. Nxe4 {[%emt 0:01:33]} Bxe4 {[%emt 0:22:17]} 17. Bxe4 {[%emt 0:00:13]} g6 {[%emt 0:00:08]} 18. Bg2 {[%emt 0:03:45]} Bg7 {[%emt 0:03:36]} 19. dxc5 {[%emt 0:01:56]} bxc5 {[%emt 0:00:33]} 20. Bxg7 {[%emt 0:12:53]} Kxg7 {[%emt 0:00:04]} 21. Qd2 {[%emt 0:04:02]} Rb6 {[%emt 0:01:21]} 22. Qa5 {[%emt 0:00:11]} e5 {[%emt 0:03:25]} 23. Rd2 {[%emt 0:06:08]} e4 {[%emt 0:03:02]} 24. Rcd1 {[%emt 0:04:32]} Nf6 {[%emt 0:00:55]} 25. h4 {[%emt 0:04:45]} Re5 {[%emt 0:01:16]} 26. Bh3 {[%emt 0:00:40]} h6 {[%emt 0:03:20]} 27. Rxd6 {[%emt 0:02:08]} Rxd6 {[%emt 0:02:58]} 28. Qxc7 {[%emt 0:00:04]} Rxd1+ {[%emt 0:00:04]} 29. Kg2 {[%emt 0:00:02]} Re8 {[%emt 0:00:15]} 30. Qxc5 {[%emt 0:01:37]} Rd2 {[%emt 0:06:34]} 31. Qa5 {[%emt 0:00:55]} Rc2 {[%emt 0:00:07]} 32. g4 {[%emt 0:01:43]} Nd7 {[%emt 0:04:21]} 33. Qd5 {[%emt 0:00:18]} Ne5 {[%emt 0:00:55]} 34. Qxe4 {[%emt 0:00:20]} Rd2 {[%emt 0:02:52]} 35. g5 {[%emt 0:00:41]} h5 {[%emt 0:02:03]} 36. Qf4 {[%emt 0:01:55]} Nd3 {[%emt 0:00:59]} 37. Qd4+ {[%emt 0:00:34]} Kg8 {[%emt 0:00:10]} 38. Kg1 {[%emt 0:00:32]} Ne5 {[%emt 0:00:51]} 39. Qc3 {[%emt 0:00:32]} Rxa2 {[%emt 0:00:57]} 40. Kg2 {[%emt 0:00:00]} a5 {[%emt 0:00:00]} 41. c5 {[%emt 0:05:48]} a4 {[%emt 0:10:49]} 42. b4 {[%emt 0:01:31]} a3 {[%emt 0:01:28]} 43. c6 {[%emt 0:00:17]} Nxc6 {[%emt 0:00:53]} 44. Bd7 {[%emt 0:05:15]} Rd8 {[%emt 0:05:17]} 45. Bxc6 {[%emt 0:00:09]} Rdd2 {[%emt 0:00:19]} 46. b5 {[%emt 0:00:17]} Rxf2+ {[%emt 0:00:20]} 47. Kg3 {[%emt 0:00:04]} Rfc2 {[%emt 0:02:23]} 48. Qe5 {[%emt 0:00:45]} Rab2 {[%emt 0:01:58]} 49. Bd5 {[%emt 0:01:23]} Rf2 {[%emt 0:00:37]} 50. b6 {[%emt 0:02:39]} Rf5 {[%emt 0:00:41]} 51. Qd6 {[%emt 0:00:55]} Kg7 {[%emt 0:04:52]} 52. b7 {[%emt 0:00:03]} a2 {[%emt 0:01:17]} 53. Qa3 {[%emt 0:00:16]} Rb5 {[%emt 0:00:38]} 54. Qxa2 {[%emt 0:00:20]} Rfxd5 {[%emt 0:00:11]} 55. b8=Q {[%emt 0:00:38]} Rxg5+ {[%emt 0:00:07]} 56. hxg5 {[%emt 0:00:11]} Rxb8 {[%emt 0:00:04]} 57. Qa4 {[%emt 0:00:52]} Rb1 {[%emt 0:00:40]} 58. Qd4+ {[%emt 0:01:19]} Kg8 {[%emt 0:00:11]} 59. Qd8+ {[%emt 0:00:49]} Kg7 {[%emt 0:00:03]} 60. Qf6+ {[%emt 0:00:20]} Kg8 {[%emt 0:00:04]} 61. Kf2 {[%emt 0:00:39]} Rb8 {[%emt 0:02:43]} 62. Qe7 {[%emt 0:00:09]} Ra8 {[%emt 0:00:15]} 63. Qd7 {[%emt 0:00:51]} Kg7 {[%emt 0:00:14]} 64. Qc6 {[%emt 0:00:07]} Ra2+ {[%emt 0:00:35]} 65. Kf3 {[%emt 0:00:05]} Kg8 {[%emt 0:00:18]} 66. Qc8+ {[%emt 0:00:43]} Kg7 {[%emt 0:00:07]} 67. e4 {[%emt 0:00:13]} Ra3+ {[%emt 0:00:19]} 68. Kf4 {[%emt 0:00:11]} Ra4 {[%emt 0:00:16]} 69. Qc6 {[%emt 0:01:17]} Ra2 {[%emt 0:00:52]} 70. Qc4 {[%emt 0:01:22]} Ra8 {[%emt 0:00:49]} 71. Qc6 {[%emt 0:00:05]} Ra2 {[%emt 0:00:02]} 72. Qc3+ {[%emt 0:00:21]} Kg8 {[%emt 0:00:05]} 73. Ke5 {[%emt 0:00:45]} Kg7 {[%emt 0:02:03]} 74. Kd6+ {[%emt 0:00:08]} Kg8 {[%emt 0:00:09]} 75. Qc8+ {[%emt 0:00:40]} Kg7 {[%emt 0:00:05]} 76. Qc4 {[%emt 0:00:21]} Ra8 {[%emt 0:01:37]} 77. Qd4+ {[%emt 0:00:53]} Kg8 {[%emt 0:00:06]} 78. Ke7 {[%emt 0:00:07]} Rc8 {[%emt 0:00:56]} 79. Qd7 {[%emt 0:00:45]} Rb8 {[%emt 0:00:29]} 80. e5 {[%emt 0:00:20]} Kg7 {[%emt 0:00:33]} 81. Qd5 {[%emt 0:00:54]} Rf8 {[%emt 0:00:28]} 82. Qd4 {[%emt 0:00:29]} h4 {[%emt 0:00:32]} 83. e6+ {[%emt 0:00:17]} Kg8 {[%emt 0:00:04]} 84. Qf6 {[%emt 0:00:03]} 1-0

[Event "Romanian-ch Open 2022"]
[Site "Eforie Nord"]
[Date "2022.02.21"]
[Round "2.12"]
[White "Ciocani, Iosif"]
[Black "Filip, Lucian-Ioan"]
[Result "1/2-1/2"]
[ECO "B33"]
[WhiteElo "1876"]
[BlackElo "2391"]
[Annotator "ChessBase"]
[PlyCount "38"]
[EventDate "2022.02.20"]
[EventType "swiss"]
[EventCountry "ROU"]
[SourceTitle "playchess.com"]
[Source "ChessBase"]
[SourceQuality "1"]
[TimeControl "40/5400+30:900+30"]

1. e4 {[%emt 0:00:03]} c5 {[%emt 0:00:50]} 2. Nf3 {[%emt 0:00:06]} Nc6 {[%emt 0:00:05]} 3. d4 {[%emt 0:00:06]} cxd4 {[%emt 0:00:04]} 4. Nxd4 {[%emt 0:00:06]} Qb6 {[%emt 0:00:04]} 5. Nb3 {[%emt 0:00:44]} Nf6 {[%emt 0:00:06]} 6. Nc3 {[%emt 0:01:09]} e6 {[%emt 0:00:06]} 7. Qe2 {[%emt 0:01:03]} Bb4 {[%emt 0:00:31]} 8. Bd2 {[%emt 0:00:52]} O-O {[%emt 0:00:28]} 9. a3 {[%emt 0:01:00]} Be7 {[%emt 0:00:42]} 10. O-O-O {[%emt 0:00:43]} d5 {[%emt 0:00:27]} 11. exd5 {[%emt 0:01:05]} Nxd5 {[%emt 0:00:25]} 12. g3 {[%emt 0:01:15]} Nxc3 {[%emt 0:36:57]} 13. Bxc3 {[%emt 0:00:13]} Rd8 {[%emt 0:00:06]} 14. Bg2 {[%emt 0:15:23]} Bd7 {[%emt 0:04:20]} 15. f4 {[%emt 0:09:39]} Be8 {[%emt 0:03:15]} 16. Be4 {[%emt 0:12:44]} Rxd1+ {[%emt 0:07:50]} 17. Rxd1 {[%emt 0:00:16]} Rd8 {[%emt 0:00:04]} 18. Rf1 {[%emt 0:13:18]} Qc7 {[%emt 0:25:36]} 19. Kb1 {[%emt 0:03:23]} Bf8 {[%emt 0:07:15]} 1/2-1/2

[Event "Romanian-ch Open 2022"]
[Site "Eforie Nord"]
[Date "2022.02.21"]
[Round "2.13"]
[White "Toma, Radu-Cristian"]
[Black "Antal, Hunor-Zoltan"]
[Result "1-0"]
[ECO "A47"]
[WhiteElo "2388"]
[BlackElo "2172"]
[Annotator "ChessBase"]
[PlyCount "65"]
[EventDate "2022.02.20"]
[EventType "swiss"]
[EventCountry "ROU"]
[SourceTitle "playchess.com"]
[Source "ChessBase"]
[SourceQuality "1"]
[TimeControl "40/5400+30:900+30"]

1. d4 {[%emt 0:00:24]} Nf6 {[%emt 0:00:07]} 2. Nf3 {[%emt 0:02:06]} e6 {[%emt 0:00:11]} 3. Bg5 {[%emt 0:03:18]} c5 {[%emt 0:01:34]} 4. e3 {[%emt 0:09:50]} b6 {[%emt 0:03:05]} 5. Bd3 {[%emt 0:01:20]} Bb7 {[%emt 0:01:18]} 6. O-O {[%emt 0:01:11]} cxd4 {[%emt 0:00:14]} 7. exd4 {[%emt 0:01:06]} Be7 {[%emt 0:00:28]} 8. Re1 {[%emt 0:03:27]} O-O {[%emt 0:02:12]} 9. Nbd2 {[%emt 0:03:12]} d6 {[%emt 0:01:24]} 10. a4 {[%emt 0:00:17]} a6 {[%emt 0:03:11]} 11. Qe2 {[%emt 0:03:44]} Nbd7 {[%emt 0:02:26]} 12. Nf1 {[%emt 0:01:18]} Re8 {[%emt 0:06:29]} 13. Rad1 {[%emt 0:06:41]} Qc8 {[%emt 0:14:47]} 14. Ne3 {[%emt 0:11:54]} Bc6 {[%emt 0:24:22]} 15. b3 {[%emt 0:07:08]} Qb7 {[%emt 0:03:20]} 16. c4 {[%emt 0:08:31]} Be4 {[%emt 0:09:33]} 17. Bxe4 {[%emt 0:16:38]} Nxe4 {[%emt 0:00:26]} 18. Bxe7 {[%emt 0:00:08]} Nc3 {[%emt 0:04:05]} 19. Qd3 {[%emt 0:00:22]} Nxd1 {[%emt 0:00:06]} 20. Ng5 {[%emt 0:01:47]} g6 {[%emt 0:09:10]} 21. Bxd6 {[%emt 0:00:05]} Nxe3 {[%emt 0:00:21]} 22. Qxe3 {[%emt 0:00:22]} Qc6 {[%emt 0:02:44]} 23. Qf4 {[%emt 0:00:32]} f6 {[%emt 0:00:56]} 24. Nxe6 {[%emt 0:00:24]} Nf8 {[%emt 0:00:46]} 25. Qxf6 {[%emt 0:02:37]} Nxe6 {[%emt 0:00:50]} 26. Be5 {[%emt 0:00:07]} Rf8 {[%emt 0:05:12]} 27. Qh8+ {[%emt 0:00:20]} Kf7 {[%emt 0:00:00]} 28. Qxh7+ {[%emt 0:00:36]} Ke8 {[%emt 0:00:01]} 29. d5 {[%emt 0:02:13]} Qd7 {[%emt 0:00:52]} 30. Qxg6+ {[%emt 0:00:25]} Kd8 {[%emt 0:00:24]} 31. dxe6 {[%emt 0:00:38]} Qd2 {[%emt 0:00:41]} 32. e7+ {[%emt 0:00:10]} Kd7 {[%emt 0:00:09]} 33. exf8=N+ {[%emt 0:00:32]} 1-0